fUSD/lending_fUSD_20250926
["ID","MTS","AMOUNT","RATE_DAILY","PERIOD"]
[387793322,1758875917935,500.0,0.00030136,120]
[387793323,1758875918101,500.0,0.00030136,120]
[387793324,1758875918288,500.0,0.00030136,120]
[387793325,1758875918476,500.0,0.00030136,120]
[387793326,1758875918769,500.0,0.00030136,120]
[387793327,1758875918960,552.92,0.00030136,120]
[387793328,1758875919171,500.0,0.00030136,120]
[387793329,1758875919320,500.0,0.00030136,120]
[387793330,1758875919615,500.0,0.00030136,120]
[387793331,1758875919780,500.0,0.00030136,120]
[387793332,1758875919977,500.0,0.00030136,120]
[387793333,1758875920399,500.0,0.00030136,120]
[387793334,1758875920501,500.0,0.00030136,120]
[387793335,1758875920607,288.0,0.00030136,120]
[387793336,1758875923624,500.0,0.00030136,120]
[387793337,1758875923812,500.0,0.00030136,120]
[387793338,1758875923961,500.0,0.00030136,120]
[387793339,1758875924261,500.0,0.00030136,120]
[387793340,1758875924419,349.25,0.00030136,120]
[387793341,1758875943630,500.0,0.00030136,120]
[387793343,1758875943879,500.0,0.00030136,120]
[387793344,1758875944219,500.0,0.00030136,120]
[387793345,1758875944398,500.0,0.00030136,120]
[387793346,1758875944637,500.0,0.00030136,120]
[387793347,1758875944869,500.0,0.00030136,120]
[387793348,1758875945111,500.0,0.00030136,120]
[387793349,1758875945517,500.0,0.00030136,120]
[387793350,1758875945597,500.0,0.00030136,120]
[387793351,1758875945820,500.0,0.00030136,120]
[387793352,1758875946074,500.0,0.00030136,120]
[387793353,1758875946368,500.0,0.00030136,120]
[387793354,1758875946587,500.0,0.00030136,120]
[387793355,1758875946984,500.0,0.00030136,120]
[387793356,1758875947139,173.06816091,0.00030136,120]
[387793360,1758875995914,158.2,9.413e-05,2]
[387793363,1758876023413,500.0,0.00030136,120]
[387793364,1758876023664,500.0,0.00030136,120]
[387793365,1758876024590,500.0,0.00030136,120]
[387793366,1758876024951,500.0,0.00030136,120]
[387793367,1758876025217,500.0,0.00030136,120]
[387793368,1758876026189,500.0,0.00030136,120]
[387793369,1758876026399,500.0,0.00030136,120]
[387793370,1758876026655,500.0,0.00030136,120]
[387793371,1758876026946,500.0,0.00030136,120]
[387793372,1758876027355,500.0,0.00030136,120]
[387793373,1758876027624,500.0,0.00030136,120]
[387793374,1758876027873,500.0,0.00030136,120]
[387793375,1758876028269,500.0,0.00030136,120]
[387793376,1758876028616,308.79600614,0.00030136,120]
[387793383,1758876098109,500.0,0.00030136,120]
[387793384,1758876098316,510.50921892,0.00030136,120]
[387793387,1758876119614,500.0,0.00030136,120]
[387793388,1758876122748,500.0,0.00030136,120]
[387793389,1758876122926,550.16788703,0.00030136,120]
[387793392,1758876129168,500.0,0.00030136,120]
[387793393,1758876129400,513.23,0.00030136,120]
[387793397,1758876176977,-192.83328507,0.00018744,2]
[387793398,1758876180189,-57.16671493,0.00018744,2]
[387793400,1758876181560,-150.0,0.00018812,7]
[387793401,1758876181580,-10.30388542,0.00018815,2]
[387793404,1758876201563,-152.0,0.00018729,2]
[387793405,1758876204155,-167.88535837,0.00018729,2]
[387793406,1758876204176,-235.62021938,0.00018729,2]
[387793408,1758876210997,-322.26992068,0.00018729,2]
[387793409,1758876217611,500.0,0.00030136,120]
[387793410,1758876217903,200.0,0.00030136,120]
[387793414,1758876239217,-167.878,0.00018729,2]
[387793415,1758876241726,-201.60262819,0.00018729,2]
[387793416,1758876244084,-201.30657887,0.00018729,2]
[387793417,1758876246873,-380.86437869,0.00018729,2]
[387793421,1758876268225,500.0,0.00030136,120]
[387793422,1758876268517,500.0,0.00030136,120]
[387793423,1758876268715,642.4109398,0.00030136,120]
[387793427,1758876294796,500.0,0.00030136,120]
[387793428,1758876295053,500.0,0.00030136,120]
[387793429,1758876295315,500.0,0.00030136,120]
[387793430,1758876295407,500.0,0.00030136,120]
[387793431,1758876295569,500.0,0.00030136,120]
[387793432,1758876295827,500.0,0.00030136,120]
[387793433,1758876296083,216.13117458,0.00030136,120]
[387793437,1758876312835,150.0,0.00018,2]
[387793438,1758876312940,150.0,0.00018,2]
[387793439,1758876313652,150.0,0.00018,2]
[387793440,1758876313735,500.0,0.00030136,120]
[387793441,1758876313914,500.0,0.00030136,120]
[387793442,1758876314428,500.0,0.00030136,120]
[387793443,1758876314563,500.0,0.00030136,120]
[387793444,1758876314738,471.63328833,0.00030136,120]
[387793445,1758876319486,157.33661179,0.00018,2]
[387793446,1758876319572,150.0,0.00018,2]
[387793447,1758876319619,150.0,0.00018,2]
[387793448,1758876320830,150.0,0.00018,2]
[387793449,1758876327317,280.95218274,0.00018,2]
[387793450,1758876329942,235.11127902,0.00018,2]
[387793453,1758876331670,-207.24737809,0.0001862,2]
[387793454,1758876334201,150.0,0.00018,2]
[387793455,1758876334318,150.0,0.00018,2]
[387793456,1758876334428,150.0,0.00018,2]
[387793457,1758876337005,151.605964,0.00017897,2]
[387793458,1758876337071,150.0,0.00018,2]
[387793459,1758876340868,-75.90962191,0.0001862,2]
[387793460,1758876340891,-151.605964,0.00018647,2]
[387793461,1758876341916,155.554408,0.00018156,2]
[387793462,1758876344213,-191.47096111,0.00018727,2]
[387793463,1758876345462,154.704931,0.00018402,2]
[387793464,1758876345979,-154.704931,0.00018649,2]
[387793465,1758876346002,-85.67024342,0.00018727,2]
[387793467,1758876346483,154.704931,0.00018156,2]
[387793468,1758876347464,154.704931,0.00017859,2]
[387793469,1758876348146,154.704931,0.00017856,2]
[387793472,1758876429754,500.0,0.00030136,120]
[387793473,1758876430199,500.0,0.00030136,120]
[387793474,1758876430359,500.0,0.00030136,120]
[387793475,1758876430519,500.0,0.00030136,120]
[387793476,1758876430689,500.0,0.00030136,120]
[387793477,1758876430856,500.0,0.00030136,120]
[387793478,1758876431047,500.0,0.00030136,120]
[387793480,1758876458810,500.0,0.00030136,120]
[387793481,1758876462514,-207.0370136,0.00018674,2]
[387793483,1758876465642,-178.45929828,0.00018674,2]
[387793484,1758876469655,-83.07368812,0.00018674,2]
[387793488,1758876507910,-216.92631188,0.00018627,2]
[387793489,1758876510886,-205.23718913,0.00018627,2]
[387793490,1758876514465,-77.83649899,0.00018627,2]
[387793491,1758876575453,167.74,0.00018521,2]
[387793492,1758876578869,500.0,0.00030136,120]
[387793493,1758876579233,500.0,0.00030136,120]
[387793494,1758876579789,500.0,0.00030136,120]
[387793495,1758876580017,500.0,0.00030136,120]
[387793496,1758876580259,500.0,0.00030136,120]
[387793497,1758876580505,500.0,0.00030136,120]
[387793498,1758876583179,500.0,0.00030136,120]
[387793499,1758876583496,500.0,0.00030136,120]
[387793500,1758876583544,500.0,0.00030136,120]
[387793501,1758876583764,500.0,0.00030136,120]
[387793502,1758876591622,194.16,0.00018525,2]
[387793503,1758876617290,500.0,0.00030136,120]
[387793504,1758876617541,500.0,0.00030136,120]
[387793505,1758876617791,500.0,0.00030136,120]
[387793506,1758876618282,526.46,0.00030136,120]
[387793581,1758876633387,-506.7935325,0.00018587,2]
[387793582,1758876633399,-387.90061276,0.00018587,2]
[387793583,1758876633412,-1508.40480003,0.00018587,2]
[387793584,1758876633442,-256.13105471,0.00018587,2]
[387793585,1758876633456,-731.79533608,0.00018725,2]
[387793586,1758876633725,-468.20466392,0.00018725,2]
[387793587,1758876633735,-191.42264385,0.00018726,2]
[387793588,1758876633744,-129.27269223,0.00018726,2]
[387793589,1758876633757,-370.72730777,0.00018726,2]
[387793590,1758876633767,-500.0,0.00018726,2]
[387793591,1758876633777,-500.0,0.00018726,2]
[387793592,1758876633787,-500.0,0.00018726,2]
[387793593,1758876633797,-500.0,0.00018726,2]
[387793594,1758876633807,-500.0,0.00018726,2]
[387793595,1758876633818,-300.38852651,0.00018726,2]
[387793596,1758876633828,-500.0,0.00018726,2]
[387793597,1758876633838,-500.0,0.00018726,2]
[387793598,1758876633848,-500.0,0.00018726,2]
[387793599,1758876633858,-500.0,0.00018726,2]
[387793600,1758876633869,-500.0,0.00018726,2]
[387793601,1758876633879,-31.08154502,0.00018726,2]
[387793602,1758876633950,-468.91845498,0.00018726,2]
[387793603,1758876633960,-500.0,0.00018726,2]
[387793604,1758876633970,-500.0,0.00018726,2]
[387793605,1758876633979,-500.0,0.00018726,2]
[387793606,1758876633989,-500.0,0.00018726,2]
[387793607,1758876633999,-377.93461674,0.00018726,2]
[387793608,1758876634009,-195.0,0.00018727,2]
[387793609,1758876634019,-195.0,0.00018727,2]
[387793610,1758876634030,-2000.0,0.00018727,2]
[387793611,1758876634040,-2000.0,0.00018727,2]
[387793612,1758876634049,-2724.39237898,0.00018729,2]
[387793613,1758876634062,-1345.0415323,0.00018729,2]
[387793622,1758876641247,-492.89436291,0.00018729,2]
[387793623,1758876641257,-2751.0,0.00018831,2]
[387793624,1758876641267,-327.0,0.00018863,2]
[387793625,1758876641276,-2829.17871655,0.00019,2]
[387793626,1758876641285,-187.16,0.00019088,2]
[387793627,1758876641295,-505.0,0.00019178,2]
[387793628,1758876641304,-600.0,0.000192,7]
[387793629,1758876641314,-90.34436588,0.000193,7]
[387793633,1758876643444,-615.08978606,0.00018726,2]
[387793634,1758876643502,-2362.42021394,0.00018726,2]
[387793635,1758876643512,-2977.51,0.00019,2]
[387793636,1758876643522,-1109.65563412,0.000193,7]
[387793637,1758876643533,-170.0,0.00019314,2]
[387793638,1758876643543,-151.0,0.00019336,2]
[387793639,1758876643553,-1441.91,0.00019339,2]
[387793640,1758876643562,-9999.99,0.00019339,2]
[387793641,1758876643572,-5483.43,0.00019339,2]
[387793642,1758876643582,-504.89,0.00019339,2]
[387793643,1758876643591,-4822.65,0.00019339,2]
[387793644,1758876643862,-999.99,0.00019339,2]
[387793645,1758876643887,-9999.99,0.00019339,2]
[387793646,1758876643897,-9999.99,0.00019339,2]
[387793647,1758876643907,-342.25,0.00019339,2]
[387793648,1758876643916,-1509.74,0.00019339,2]
[387793649,1758876643925,-2923.21,0.00019339,2]
[387793650,1758876643935,-1578.98,0.00019339,2]
[387793651,1758876643944,-418.04,0.00019339,2]
[387793652,1758876643954,-299.99,0.00019339,7]
[387793653,1758876643963,-9999.99,0.00019339,2]
[387793654,1758876643973,-150.99,0.00019339,2]
[387793655,1758876643983,-499.99,0.00019339,2]
[387793656,1758876643992,-168.0,0.00019365,2]
[387793657,1758876644001,-1800.0,0.000194,7]
[387793658,1758876644011,-303.25,0.00019425,2]
[387793659,1758876644020,-150.77,0.00019425,2]
[387793660,1758876644030,-167.74,0.00019447,2]
[387793661,1758876644040,-2248.6146817,0.000195,7]
[387793673,1758876647218,-0.0061326,0.000195,7]
[387793674,1758876648014,-151.3791857,0.000195,7]
[387793675,1758876648024,-2040.2663782,0.000196,7]
[387793676,1758876649635,-2977.51,0.00019274,2]
[387793677,1758876649644,-305.63718558,0.00019499,2]
[387793678,1758876649653,-2977.51,0.00019548,2]
[387793679,1758876649664,-959.7336218,0.000196,7]
[387793680,1758876649673,-255.39,0.00019663,2]
[387793681,1758876649682,-600.0,0.000197,7]
[387793682,1758876649691,-208.81633,0.000198,2]
[387793683,1758876649700,-600.0,0.000198,7]
[387793684,1758876649710,-516.91207795,0.000198,7]
[387793685,1758876649719,-849.0,0.00019802,2]
[387793686,1758876649728,-2977.51,0.00019822,2]
[387793687,1758876649737,-200.0,0.0001984,2]
[387793688,1758876649747,-160.94082498,0.00019841,2]
[387793689,1758876649756,-467.49625963,0.00019845,2]
[387793690,1758876649765,-314.3320385,0.00019848,2]
[387793691,1758876649775,-440.41699427,0.00019848,2]
[387793692,1758876649784,-307.06393977,0.00019849,2]
[387793693,1758876649795,-2115.66248121,0.00019851,2]
[387793694,1758876649805,-1938.56897299,0.00019855,2]
[387793695,1758876649815,-467.49625963,0.00019856,2]
[387793696,1758876649825,-235.52967731,0.00019858,2]
[387793697,1758876649834,-314.3320385,0.00019859,2]
[387793698,1758876649844,-560.7610202,0.00019859,2]
[387793699,1758876649853,-263.41945273,0.00019859,2]
[387793700,1758876649863,-5359.24881735,0.0001986,2]
[387793701,1758876649873,-1335.44702994,0.00019861,2]
[387793702,1758876649883,-560.7610202,0.00019861,2]
[387793703,1758876649892,-168.0,0.00019861,2]
[387793704,1758876649901,-440.41699427,0.00019862,2]
[387793705,1758876649910,-314.3320385,0.00019863,2]
[387793706,1758876649920,-263.41945273,0.00019864,2]
[387793707,1758876649929,-307.06393977,0.00019867,2]
[387793708,1758876649938,-160.94082498,0.00019868,2]
[387793709,1758876649948,-1894.1980475,0.00019868,2]
[387793710,1758876649957,-160.94082498,0.00019868,2]
[387793711,1758876649966,-307.06393977,0.00019869,2]
[387793712,1758876649975,-5359.24881735,0.00019871,2]
[387793713,1758876649985,-13112.1328213,0.00019873,2]
[387793714,1758876649994,-467.49625963,0.00019875,2]
[387793715,1758876650004,-2115.66248121,0.00019879,2]
[387793716,1758876650013,-160.94082498,0.00019882,2]
[387793717,1758876650023,-1894.1980475,0.00019882,2]
[387793718,1758876650032,-440.41699427,0.00019882,2]
[387793719,1758876650042,-13112.1328213,0.00019882,2]
[387793720,1758876650051,-263.41945273,0.00019883,2]
[387793721,1758876650061,-5359.24881735,0.00019884,2]
[387793722,1758876650071,-5359.24881735,0.00019886,2]
[387793723,1758876650080,-322.6107,0.00019888,2]
[387793724,1758876650090,-500.0,0.00019888,2]
[387793725,1758876650100,-500.0,0.00019888,2]
[387793726,1758876650109,-151.0,0.00019888,2]
[387793727,1758876650119,-151.0,0.00019888,2]
[387793728,1758876650128,-151.0,0.00019888,2]
[387793729,1758876650138,-151.0,0.00019888,2]
[387793730,1758876650147,-200.0,0.00019888,2]
[387793731,1758876650156,-164.11,0.00019888,2]
[387793732,1758876650165,-500.0,0.00019888,2]
[387793733,1758876650175,-200.0,0.00019888,2]
[387793734,1758876650185,-500.0,0.00019888,2]
[387793735,1758876650194,-200.0,0.00019888,2]
[387793736,1758876650203,-542.09248006,0.00019888,2]
[387793737,1758876650212,-200.0,0.00019888,2]
[387793738,1758876650222,-200.0,0.00019888,2]
[387793739,1758876650231,-200.0,0.00019888,2]
[387793740,1758876650240,-200.0,0.00019888,2]
[387793741,1758876650249,-200.0,0.00019888,2]
[387793742,1758876650259,-200.0,0.00019888,2]
[387793743,1758876650268,-200.0,0.00019888,2]
[387793744,1758876650278,-151.0,0.00019888,2]
[387793745,1758876650287,-151.0,0.00019888,2]
[387793746,1758876650296,-151.0,0.00019888,2]
[387793747,1758876650306,-151.0,0.00019888,2]
[387793748,1758876650317,-151.0,0.00019888,2]
[387793749,1758876650327,-151.0,0.00019888,2]
[387793750,1758876650336,-151.0,0.00019888,2]
[387793751,1758876650346,-151.0,0.00019888,2]
[387793752,1758876650355,-270.0112705,0.00019888,2]
[387793753,1758876650367,-440.41699427,0.00019892,2]
[387793754,1758876650378,-2115.66248121,0.00019892,2]
[387793755,1758876650387,-13112.1328213,0.00019893,2]
[387793756,1758876650396,-160.94082498,0.00019894,2]
[387793757,1758876650406,-1731.6692,0.000199,2]
[387793758,1758876650418,-1000.0,0.000199,2]
[387793759,1758876650427,-16258.5729,0.000199,2]
[387793760,1758876650436,-376.65518032,0.000199,2]
[387793761,1758876650446,-158.73242726,0.000199,2]
[387793762,1758876650455,-1000.0,0.000199,2]
[387793763,1758876650465,-5000.0,0.000199,2]
[387793764,1758876650474,-208.81633,0.000199,2]
[387793765,1758876650483,-600.0,0.000199,7]
[387793766,1758876650492,-611.7530625,0.000199,2]
[387793767,1758876650502,-365.88262058,0.000199,2]
[387793768,1758876650511,-1012.0,0.000199,2]
[387793769,1758876650520,-299.34333737,0.000199,3]
[387793770,1758876650530,-44455.0364565,0.000199,2]
[387793771,1758876650539,-2242.6893903,0.000199,2]
[387793772,1758876650550,-156.12453121,0.000199,2]
[387793773,1758876650562,-1335.44702994,0.00019901,2]
[387793774,1758876650571,-160.94082498,0.00019903,2]
[387793775,1758876650581,-1938.56897299,0.00019906,2]
[387793776,1758876650590,-160.94082498,0.00019907,2]
[387793777,1758876650599,-467.49625963,0.00019907,2]
[387793778,1758876650609,-307.06393977,0.00019912,2]
[387793779,1758876650619,-1894.1980475,0.00019912,2]
[387793780,1758876650629,-263.41945273,0.00019913,2]
[387793781,1758876650639,-1894.1980475,0.00019914,2]
[387793782,1758876650653,-263.41945273,0.00019914,2]
[387793783,1758876650662,-1938.56897299,0.00019914,2]
[387793784,1758876650672,-814.71252065,0.00019914,2]
[387793785,1758876650682,-560.7610202,0.00019917,2]
[387793786,1758876650691,-5359.24881735,0.00019917,2]
[387793787,1758876650701,-440.41699427,0.00019917,2]
[387793788,1758876650710,-13112.1328213,0.00019918,2]
[387793789,1758876650719,-1938.56897299,0.0001992,2]
[387793790,1758876650729,-1938.56897299,0.00019921,2]
[387793791,1758876650739,-467.49625963,0.00019923,2]
[387793792,1758876650749,-13112.1328213,0.00019929,2]
[387793793,1758876650759,-1894.1980475,0.00019929,2]
[387793794,1758876650768,-314.3320385,0.00019929,2]
[387793795,1758876650778,-467.49625963,0.0001993,2]
[387793796,1758876650787,-314.3320385,0.00019931,2]
[387793797,1758876650797,-307.06393977,0.00019931,2]
[387793798,1758876650806,-13112.1328213,0.00019934,2]
[387793799,1758876650816,-1938.56897299,0.00019936,2]
[387793800,1758876650825,-5359.24881735,0.00019938,2]
[387793801,1758876650835,-263.41945273,0.00019938,2]
[387793802,1758876650845,-314.3320385,0.00019939,2]
[387793803,1758876650855,-2306.81,0.0001994,2]
[387793804,1758876650864,-206.415,0.0001994,2]
[387793805,1758876650874,-1335.44702994,0.00019944,2]
[387793806,1758876650884,-560.7610202,0.00019948,2]
[387793807,1758876650893,-1335.44702994,0.0001995,2]
[387793808,1758876650902,-560.7610202,0.0001995,2]
[387793809,1758876650912,-1894.1980475,0.00019954,2]
[387793810,1758876650921,-2115.66248121,0.00019956,2]
[387793811,1758876650931,-1335.44702994,0.00019957,2]
[387793812,1758876650939,-1938.56897299,0.00019958,2]
[387793813,1758876650949,-307.06393977,0.00019959,2]
[387793814,1758876650958,-2115.66248121,0.00019964,2]
[387793815,1758876650967,-440.41699427,0.00019964,2]
[387793816,1758876650977,-2115.66248121,0.00019966,2]
[387793817,1758876650986,-307.06393977,0.00019967,2]
[387793818,1758876650996,-1335.44702994,0.00019971,2]
[387793819,1758876651007,-560.7610202,0.00019972,2]
[387793820,1758876651016,-1220.0,0.00019973,2]
[387793821,1758876651025,-500.0,0.00019973,2]
[387793822,1758876651035,-500.0,0.00019973,2]
[387793823,1758876651045,-398.39727318,0.00019973,2]
[387793824,1758876651055,-501.23914382,0.00019973,2]
[387793825,1758876651064,-571.95116994,0.00019973,2]
[387793826,1758876651073,-501.67943175,0.00019973,2]
[387793827,1758876651083,-500.0,0.00019973,2]
[387793828,1758876651093,-500.0,0.00019973,2]
[387793829,1758876651103,-170.31320135,0.00019973,2]
[387793830,1758876651115,-500.0,0.00019973,2]
[387793831,1758876651124,-441.23771384,0.00019973,2]
[387793832,1758876651134,-221.43539208,0.00019973,2]
[387793833,1758876651145,-500.0,0.00019973,2]
[387793834,1758876651155,-500.0,0.00019973,2]
[387793835,1758876651164,-500.0,0.00019973,2]
[387793836,1758876651174,-500.0,0.00019973,2]
[387793837,1758876651183,-166.92250071,0.00019973,2]
[387793838,1758876651193,-502.0821359,0.00019973,2]
[387793839,1758876651203,-500.0,0.00019973,2]
[387793840,1758876651212,-500.0,0.00019973,2]
[387793841,1758876651222,-238.6555954,0.00019973,2]
[387793842,1758876651231,-500.0,0.00019973,2]
[387793843,1758876651240,-13112.1328213,0.00019978,2]
[387793844,1758876651249,-467.49625963,0.00019978,2]
[387793845,1758876651258,-1335.44702994,0.00019979,2]
[387793846,1758876651268,-263.41945273,0.00019981,2]
[387793847,1758876651277,-2115.66248121,0.00019985,2]
[387793848,1758876651287,-5359.24881735,0.00019986,2]
[387793849,1758876651298,-1894.1980475,0.00019986,2]
[387793850,1758876651308,-1702.4934994,0.00019987,2]
[387793851,1758876651318,-440.41699427,0.00019988,2]
[387793852,1758876651327,-560.7610202,0.00019989,2]
[387793853,1758876651337,-3151.0818437,0.0001999,2]
[387793854,1758876651353,-274.20409218,0.0001999,2]
[387793855,1758876651370,-274.20409218,0.0001999,2]
[387793856,1758876651390,-274.20409218,0.0001999,2]
[387793857,1758876651400,-314.3320385,0.00019997,2]
[387793858,1758876651410,-20515.8085685,0.00019998,2]
[387793859,1758876651421,-8878.2533676,0.00019998,2]
[387793860,1758876651430,-156.784,0.00019998,2]
[387793861,1758876651439,-349.46229014,0.00019999,2]
[387793862,1758876651449,-300.0,0.00019999,2]
[387793863,1758876651458,-1000.0,0.00019999,2]
[387793864,1758876651467,-1000.0,0.00019999,2]
[387793865,1758876651476,-1000.0,0.00019999,2]
[387793866,1758876651485,-151.51253888,0.00019999,2]
[387793867,1758876651494,-577.0,0.00019999,2]
[387793868,1758876651503,-151.93894095,0.00019999,2]
[387793869,1758876651512,-500.0,0.00019999,2]
[387793870,1758876651757,-500.0,0.00019999,2]
[387793871,1758876651767,-500.0,0.00019999,2]
[387793872,1758876651776,-150.0,0.00019999,2]
[387793873,1758876651786,-151.44035187,0.00019999,2]
[387793874,1758876651795,-500.0,0.00019999,2]
[387793875,1758876651805,-150.0,0.00019999,2]
[387793876,1758876651814,-150.0,0.00019999,2]
[387793877,1758876651823,-150.0,0.00019999,2]
[387793878,1758876651832,-150.94417845,0.00019999,2]
[387793879,1758876651844,-150.0,0.00019999,2]
[387793880,1758876651853,-150.0,0.00019999,2]
[387793881,1758876651862,-500.0,0.00019999,2]
[387793882,1758876651872,-500.0,0.00019999,2]
[387793883,1758876651881,-2723.0,0.00019999,2]
[387793884,1758876651891,-1789.142179,0.00019999,2]
[387793885,1758876651901,-1789.142179,0.00019999,2]
[387793886,1758876651910,-1789.142179,0.00019999,2]
[387793887,1758876651920,-1789.142179,0.00019999,2]
[387793888,1758876651929,-1006.0,0.00019999,2]
[387793889,1758876651939,-152.024899,0.00019999,2]
[387793890,1758876651948,-151.0,0.00019999,2]
[387793891,1758876651957,-151.0,0.00019999,2]
[387793892,1758876651967,-1401.477043,0.00019999,2]
[387793893,1758876651976,-151.0,0.00019999,2]
[387793894,1758876651985,-151.0,0.00019999,2]
[387793895,1758876651995,-1401.477043,0.00019999,2]
[387793896,1758876652004,-151.0,0.00019999,2]
[387793897,1758876652013,-151.0,0.00019999,2]
[387793898,1758876652023,-151.0,0.00019999,2]
[387793899,1758876652032,-263.76242463,0.00019999,2]
[387793900,1758876652041,-151.0,0.00019999,2]
[387793901,1758876652050,-500.0,0.00019999,2]
[387793902,1758876652060,-1401.477043,0.00019999,2]
[387793903,1758876652069,-151.0,0.00019999,2]
[387793904,1758876652079,-151.0,0.00019999,2]
[387793905,1758876652088,-151.0,0.00019999,2]
[387793906,1758876652098,-152.671321,0.00019999,2]
[387793907,1758876652107,-151.0,0.00019999,2]
[387793908,1758876652116,-1401.477043,0.00019999,2]
[387793909,1758876652126,-151.0,0.00019999,2]
[387793910,1758876652136,-151.0,0.00019999,2]
[387793911,1758876652146,-233.264611,0.00019999,2]
[387793912,1758876652155,-233.264611,0.00019999,2]
[387793913,1758876652164,-1106.086995,0.00019999,2]
[387793914,1758876652173,-233.264611,0.00019999,2]
[387793915,1758876652182,-1106.086995,0.00019999,2]
[387793916,1758876652192,-233.264611,0.00019999,2]
[387793917,1758876652201,-1106.086995,0.00019999,2]
[387793918,1758876652210,-151.0,0.00019999,2]
[387793919,1758876652219,-151.0,0.00019999,2]
[387793920,1758876652229,-151.0,0.00019999,2]
[387793921,1758876652238,-151.0,0.00019999,2]
[387793922,1758876652248,-151.0,0.00019999,2]
[387793923,1758876652257,-1106.086995,0.00019999,2]
[387793924,1758876652266,-151.0,0.00019999,2]
[387793925,1758876652275,-151.0,0.00019999,2]
[387793926,1758876652285,-151.0,0.00019999,2]
[387793927,1758876652294,-151.0,0.00019999,2]
[387793928,1758876652304,-151.0,0.00019999,2]
[387793929,1758876652314,-151.0,0.00019999,2]
[387793930,1758876652323,-471.521784,0.00019999,2]
[387793931,1758876652332,-471.521784,0.00019999,2]
[387793932,1758876652341,-471.521784,0.00019999,2]
[387793933,1758876652350,-471.521784,0.00019999,2]
[387793934,1758876652360,-151.0,0.00019999,2]
[387793935,1758876652371,-1598.281467,0.00019999,2]
[387793936,1758876652380,-151.0,0.00019999,2]
[387793937,1758876652389,-151.0,0.00019999,2]
[387793938,1758876652399,-1598.281467,0.00019999,2]
[387793939,1758876652408,-151.0,0.00019999,2]
[387793940,1758876652419,-151.0,0.00019999,2]
[387793941,1758876652428,-151.0,0.00019999,2]
[387793942,1758876652437,-1598.281467,0.00019999,2]
[387793943,1758876652447,-151.0,0.00019999,2]
[387793944,1758876652456,-190.859037,0.00019999,2]
[387793945,1758876652466,-151.0,0.00019999,2]
[387793946,1758876652475,-151.0,0.00019999,2]
[387793947,1758876652484,-1598.281467,0.00019999,2]
[387793948,1758876652494,-190.859037,0.00019999,2]
[387793949,1758876652503,-190.859037,0.00019999,2]
[387793950,1758876652512,-190.859037,0.00019999,2]
[387793951,1758876652521,-3825.29891,0.00019999,2]
[387793952,1758876652530,-151.0,0.00019999,2]
[387793953,1758876652539,-3825.29891,0.00019999,2]
[387793954,1758876652549,-175.796799,0.00019999,2]
[387793955,1758876652558,-3825.29891,0.00019999,2]
[387793956,1758876652567,-151.0,0.00019999,2]
[387793957,1758876652576,-971.127849,0.00019999,2]
[387793958,1758876652585,-151.0,0.00019999,2]
[387793959,1758876652595,-151.0,0.00019999,2]
[387793960,1758876652605,-3825.29891,0.00019999,2]
[387793961,1758876652614,-192.332213,0.00019999,2]
[387793962,1758876652624,-151.0,0.00019999,2]